fUST/lending_fUST_20250531
["ID","MTS","AMOUNT","RATE_DAILY","PERIOD"]
[363251546,1748649039933,-150.13706857,0.00018468,2]
[363251548,1748649039943,-156.35479342,0.00018493,2]
[363251551,1748649039952,-151.0,0.000185,2]
[363251553,1748649039961,-151.0,0.000185,2]
[363251555,1748649039970,-4738.85766968,0.00018555,2]
[363251557,1748649039979,-151.0,0.000186,2]
[363251559,1748649039987,-587.0,0.00018602,2]
[363251561,1748649039996,-587.0,0.00018602,2]
[363251563,1748649040006,-156.35479342,0.00018603,2]
[363251565,1748649040015,-2387.658062,0.0001862,2]
[363251566,1748649040024,-1116.16,0.0001863,2]
[363251568,1748649040034,-1746.73,0.0001863,2]
[363251570,1748649040043,-430.0,0.0001863,2]
[363251572,1748649040053,-1566.71,0.0001863,2]
[363251574,1748649040063,-486.25901773,0.0001863,2]
[363251576,1748649040072,-2281.21,0.0001863,2]
[363251579,1748649040082,-1221.81,0.0001863,2]
[363251581,1748649040091,-430.0,0.0001863,2]
[363251583,1748649040101,-430.0,0.0001863,2]
[363251585,1748649040110,-1735.19,0.0001863,2]
[363251586,1748649040119,-999.49,0.0001863,2]
[363251589,1748649040129,-430.0,0.0001863,2]
[363251590,1748649040138,-838.84,0.0001863,2]
[363251593,1748649040147,-450.19,0.0001863,2]
[363251594,1748649040157,-430.0,0.0001863,2]
[363251597,1748649040166,-815.82,0.0001863,2]
[363251599,1748649040176,-450.96,0.0001863,2]
[363251601,1748649040186,-623.08,0.0001863,2]
[363251602,1748649040195,-1724.05,0.0001863,2]
[363251605,1748649040205,-430.0,0.0001863,2]
[363251607,1748649040214,-430.0,0.0001863,2]
[363251609,1748649040224,-1945.89,0.0001863,2]
[363251611,1748649040233,-488.2,0.0001863,2]
[363251613,1748649040243,-1115.63,0.0001863,2]
[363251615,1748649040252,-430.0,0.0001863,2]
[363251616,1748649040261,-430.0,0.0001863,2]
[363251619,1748649040270,-779.58,0.0001863,2]
[363251621,1748649040280,-989.92,0.0001863,2]
[363251623,1748649040289,-888.15,0.0001863,2]
[363251625,1748649040298,-622.05,0.0001863,2]
[363251627,1748649040309,-430.0,0.0001863,2]
[363251629,1748649040319,-430.0,0.0001863,2]
[363251630,1748649040328,-3106.84,0.0001863,2]
[363251633,1748649040337,-430.0,0.0001863,2]
[363251635,1748649040347,-1221.03,0.0001863,2]
[363251636,1748649040356,-850.49,0.0001863,2]
[363251638,1748649040365,-341.97391607,0.0001863,2]
[363251640,1748649040376,-430.0,0.0001863,2]
[363251642,1748649040385,-1063.45,0.0001863,2]
[363251644,1748649040394,-430.0,0.0001863,2]
[363251646,1748649040403,-156.35479342,0.00018685,2]
[363251648,1748649040413,-600.0,0.0001874,2]
[363251650,1748649040423,-307.734421,0.00018745,2]
[363251652,1748649040432,-4000.0,0.00018752,2]
[363251654,1748649040441,-1500.0,0.00018771,2]
[363251656,1748649040451,-2000.0,0.00018771,2]
[363251658,1748649040460,-521.75294258,0.00018771,2]
[363251660,1748649040469,-1500.0,0.00018771,2]
[363251662,1748649040478,-156.35479342,0.00018795,2]
[363251664,1748649040487,-151.0,0.000188,2]
[363251666,1748649040496,-151.0,0.000188,2]
[363251668,1748649040505,-151.0,0.000188,2]
[363251670,1748649040514,-3550.65496,0.0001881,2]
[363251672,1748649040523,-961.0,0.0001881,2]
[363251674,1748649040532,-241.041,0.0001881,2]
[363251676,1748649040542,-405.0,0.0001881,2]
[363251678,1748649040550,-2228.0,0.0001881,2]
[363251680,1748649040560,-708.0,0.0001881,2]
[363251682,1748649040569,-150.0,0.0001881,2]
[363251684,1748649040578,-151.658,0.0001881,2]
[363251686,1748649040587,-250.0,0.0001881,2]
[363251688,1748649040596,-235.232,0.0001881,2]
[363251690,1748649040605,-151.0,0.0001881,2]
[363251692,1748649040614,-58867.44170073,0.0001881,2]
[363251693,1748649040623,-24229.85893433,0.0001881,2]
[363251695,1748649040633,-250.0,0.00018816,2]
[363251698,1748649040642,-4738.85766968,0.00018831,2]
[363251699,1748649040651,-364.2452897,0.00018877,2]
[363251702,1748649040660,-364.2452897,0.00018877,2]
[363251703,1748649040670,-364.2452897,0.00018877,2]
[363251706,1748649040679,-364.2452897,0.00018877,2]
[363251708,1748649040690,-364.2452897,0.00018877,2]
[363251710,1748649040699,-702.5913295,0.00018877,2]
[363251711,1748649040709,-156.35479342,0.00018877,2]
[363251713,1748649040718,-591.43959293,0.00018895,2]
[363251715,1748649040728,-1315.01375696,0.000189,2]
[363251718,1748649040738,-165.87319625,0.000189,2]
[363251719,1748649040747,-151.0,0.00018904,2]
[363251722,1748649040756,-1116.16,0.00018904,2]
[363251724,1748649040766,-1746.73,0.00018904,2]
[363251726,1748649040775,-430.0,0.00018904,2]
[363251727,1748649040784,-1566.71,0.00018904,2]
[363251730,1748649040793,-2281.21,0.00018904,2]
[363251731,1748649040803,-1221.81,0.00018904,2]
[363251734,1748649040812,-430.0,0.00018904,2]
[363251735,1748649040822,-430.0,0.00018904,2]
[363251737,1748649040832,-1735.19,0.00018904,2]
[363251739,1748649040841,-999.49,0.00018904,2]
[363251741,1748649040850,-430.0,0.00018904,2]
[363251743,1748649040859,-838.84,0.00018904,2]
[363251745,1748649040868,-450.19,0.00018904,2]
[363251747,1748649040877,-430.0,0.00018904,2]
[363251749,1748649040886,-815.82,0.00018904,2]
[363251751,1748649040894,-450.96,0.00018904,2]
[363251753,1748649040902,-623.08,0.00018904,2]
[363251755,1748649040911,-1724.05,0.00018904,2]
[363251757,1748649040919,-430.0,0.00018904,2]
[363251759,1748649040929,-430.0,0.00018904,2]
[363251761,1748649040938,-1945.89,0.00018904,2]
[363251763,1748649040947,-488.2,0.00018904,2]
[363251765,1748649040955,-1115.63,0.00018904,2]
[363251767,1748649040965,-155.71,0.00018904,2]
[363251769,1748649040974,-430.0,0.00018904,2]
[363251771,1748649040982,-779.58,0.00018904,2]
[363251773,1748649040991,-989.92,0.00018904,2]
[363251775,1748649041000,-888.15,0.00018904,2]
[363251777,1748649041009,-622.05,0.00018904,2]
[363251779,1748649041019,-430.0,0.00018904,2]
[363251781,1748649041027,-315.02,0.00018904,2]
[363251783,1748649041036,-3106.84,0.00018904,2]
[363251785,1748649041045,-430.0,0.00018904,2]
[363251787,1748649041055,-1221.03,0.00018904,2]
[363251789,1748649041065,-850.49,0.00018904,2]
[363251791,1748649041075,-430.0,0.00018904,2]
[363251793,1748649041084,-1063.45,0.00018904,2]
[363251795,1748649041093,-158.4280407,0.00018904,2]
[363251797,1748649041102,-176.414694,0.00018904,2]
[363251799,1748649041112,-158.4280407,0.00018904,2]
[363251801,1748649041122,-158.4280407,0.00018904,2]
[363251803,1748649041131,-257.1987596,0.00018932,2]
[363251805,1748649041140,-5000.0,0.00018933,2]
[363251808,1748649041150,-600.0,0.00018935,2]
[363251810,1748649041158,-500.0,0.00018973,2]
[363251812,1748649041167,-500.0,0.00018973,2]
[363251814,1748649041177,-500.73940826,0.00018973,2]
[363251816,1748649041187,-399.05799723,0.00018973,2]
[363251818,1748649041196,-500.0,0.00018973,2]
[363251820,1748649041205,-500.0,0.00018973,2]
[363251822,1748649041214,-500.8356264,0.00018973,2]
[363251824,1748649041223,-271.63902336,0.00018973,2]
[363251826,1748649041232,-500.69718326,0.00018973,2]
[363251828,1748649041242,-501.82857782,0.00018973,2]
[363251829,1748649041251,-500.0,0.00018973,2]
[363251832,1748649041468,-500.0,0.00018973,2]
[363251834,1748649041478,-500.0,0.00018973,2]
[363251836,1748649041487,-500.0,0.00018973,2]
[363251838,1748649041496,-160.16383769,0.00018973,2]
[363251840,1748649041505,-500.0,0.00018973,2]
[363251842,1748649041516,-500.0,0.00018973,2]
[363251844,1748649041527,-500.0,0.00018973,2]
[363251846,1748649041536,-156.35479342,0.00018986,2]
[363251848,1748649041546,-151.0,0.00018999,2]
[363251850,1748649041555,-160.0,0.00018999,2]
[363251852,1748649041565,-477447.45657399,0.00019,2]
[363251881,1748649042012,-412.03931674,0.00016267,2]
[363251883,1748649042023,-4587.96068326,0.00016267,2]
[363251885,1748649042032,-151.0,0.000189,2]
[363251887,1748649042040,-261.03931674,0.00019,2]
[363252625,1748649229242,283.071938,0.00013699,2]
[363252649,1748650232406,-1244.04508371,0.0001555,2]
[363252650,1748650232417,-639.7803391,0.0001555,2]
[363252651,1748650232429,-407.96641018,0.0001555,2]
[363252653,1748650232441,-418.02796217,0.0001555,2]
[363252796,1748650238354,-2290.18020484,0.0001555,2]
[363252799,1748650238364,-175.15327138,0.00015707,2]
[363252801,1748650238374,-590.27622606,0.00015707,2]
[363252802,1748650238383,-300.0,0.00015707,2]
[363252804,1748650238393,-300.0,0.00015707,2]
[363252806,1748650238402,-2518.8992845,0.00015708,2]
[363252809,1748650238414,-464.08112466,0.00015708,2]
[363252812,1748650238439,-2376.09999,0.00015708,2]
[363252817,1748650238508,-19540.91960084,0.00015708,2]
[363252818,1748650238518,-217.8106675,0.00016375,2]
[363252819,1748650238528,-5000.0,0.0001643,2]
[363252820,1748650238537,-511.42411286,0.00016437,2]
[363252821,1748650238547,-500.0,0.00016437,2]
[363252822,1748650238557,-500.0,0.00016437,2]
[363252823,1748650238569,-500.0,0.00016437,2]
[363252824,1748650238579,-500.0,0.00016437,2]
[363252825,1748650238588,-500.0,0.00016437,2]
[363252826,1748650238598,-204.92415627,0.00016437,2]
[363252827,1748650238607,-500.0,0.00016437,2]
[363252828,1748650238617,-689.36152775,0.00016437,2]
[363252829,1748650238626,-689.36152775,0.00016437,2]
[363252830,1748650238636,-689.36152775,0.00016437,2]
[363252831,1748650238646,-689.36152775,0.00016437,2]
[363252832,1748650238656,-689.36152775,0.00016437,2]
[363252833,1748650238665,-689.36152775,0.00016437,2]
[363252834,1748650238675,-689.36152775,0.00016437,2]
[363252835,1748650238684,-689.36152775,0.00016437,2]
[363252836,1748650238693,-689.36152775,0.00016437,2]
[363252837,1748650238701,-689.36152775,0.00016437,2]
[363252838,1748650238710,-689.36152775,0.00016437,2]
[363252839,1748650238719,-689.36152775,0.00016437,2]
[363252840,1748650238728,-689.36152775,0.00016437,2]
[363252841,1748650238737,-703.14875831,0.00016437,2]
[363252842,1748650238746,-703.14875831,0.00016437,2]
[363252843,1748650238756,-703.14875831,0.00016437,2]
[363252844,1748650238765,-703.14875831,0.00016437,2]
[363252845,1748650238775,-703.14875831,0.00016437,2]
[363252846,1748650238785,-725.12215701,0.00016437,2]
[363252847,1748650238795,-725.12215701,0.00016437,2]
[363252848,1748650238804,-725.12215701,0.00016437,2]
[363252849,1748650238816,-725.12215701,0.00016437,2]
[363252850,1748650238826,-478.96,0.00016438,2]
[363252851,1748650238835,-430.0,0.00016438,2]
[363252852,1748650238845,-165.48957521,0.00016438,2]
[363252853,1748650238855,-430.0,0.00016438,2]
[363252854,1748650238864,-169.25895627,0.00016438,2]
[363252855,1748650238873,-430.0,0.00016438,2]
[363252856,1748650238883,-430.0,0.00016438,2]
[363252857,1748650238896,-430.0,0.00016438,2]
[363252858,1748650239069,-430.0,0.00016438,2]
[363252859,1748650239079,-430.0,0.00016438,2]
[363252860,1748650239089,-513.14677822,0.00016438,2]
[363252861,1748650239099,-430.0,0.00016438,2]
[363252862,1748650239109,-430.0,0.00016438,2]
[363252863,1748650239119,-430.0,0.00016438,2]
[363252864,1748650239128,-430.0,0.00016438,2]
[363252865,1748650239138,-430.0,0.00016438,2]
[363252866,1748650239147,-430.0,0.00016438,2]
[363252867,1748650239157,-430.0,0.00016438,2]
[363252868,1748650239166,-430.0,0.00016438,2]
[363252869,1748650239175,-541.10981437,0.00016438,2]
[363252870,1748650239186,-430.0,0.00016438,2]
[363252871,1748650239195,-877.74,0.00016438,2]
[363252872,1748650239205,-430.0,0.00016438,2]
[363252873,1748650239215,-430.0,0.00016438,2]
[363252874,1748650239225,-846.74,0.00016438,2]
[363252875,1748650239234,-430.0,0.00016438,2]
[363252876,1748650239244,-430.0,0.00016438,2]
[363252877,1748650239255,-1593.58,0.00016438,2]
[363252878,1748650239265,-430.0,0.00016438,2]
[363252879,1748650239275,-1278.08,0.00016438,2]
[363252880,1748650239285,-1003.75,0.00016438,2]
[363252881,1748650239295,-292.2053654,0.00016438,2]
[363252882,1748650239305,-1043.15,0.00016438,2]
[363252883,1748650239317,-703.3,0.00016438,2]
[363252884,1748650239326,-430.0,0.00016438,2]
[363252885,1748650239337,-430.0,0.00016438,2]
[363252886,1748650239347,-1196.82,0.00016438,2]
[363252887,1748650239356,-430.0,0.00016438,2]
[363252888,1748650239366,-430.0,0.00016438,2]
[363252889,1748650239376,-430.0,0.00016438,2]
[363252890,1748650239387,-430.0,0.00016438,2]
[363252891,1748650239396,-1968.93,0.00016438,2]
[363252892,1748650239405,-430.0,0.00016438,2]
[363252893,1748650239415,-430.0,0.00016438,2]
[363252894,1748650239425,-430.0,0.00016438,2]
[363252895,1748650239435,-430.0,0.00016438,2]
[363252896,1748650239445,-430.0,0.00016438,2]
[363252897,1748650239454,-430.0,0.00016438,2]
[363252898,1748650239464,-680.17,0.00016438,2]
[363252899,1748650239474,-430.0,0.00016438,2]
[363252900,1748650239484,-430.0,0.00016438,2]
[363252901,1748650239493,-430.0,0.00016438,2]
[363252902,1748650239503,-525.06,0.00016438,2]
[363252903,1748650239512,-430.0,0.00016438,2]
[363252904,1748650239522,-484.7,0.00016438,2]
[363252905,1748650239531,-430.0,0.00016438,2]
[363252906,1748650239540,-430.0,0.00016438,2]
[363252907,1748650239549,-430.0,0.00016438,2]
[363252908,1748650239561,-430.0,0.00016438,2]
[363252909,1748650239571,-430.0,0.00016438,2]
[363252910,1748650239580,-430.0,0.00016438,2]
[363252911,1748650239589,-1561.28,0.00016438,2]
[363252912,1748650239599,-430.0,0.00016438,2]
[363252913,1748650239608,-1929.84,0.00016438,2]
[363252914,1748650239618,-948.55,0.00016438,2]
[363252915,1748650239627,-430.0,0.00016438,2]
[363252916,1748650239637,-430.0,0.00016438,2]
[363252917,1748650239647,-430.0,0.00016438,2]
[363252918,1748650239657,-555.12374667,0.00016438,2]
[363252919,1748650239666,-1460.09,0.00016438,2]
[363252920,1748650239676,-430.0,0.00016438,2]
[363252921,1748650239686,-430.0,0.00016438,2]
[363252922,1748650239696,-721.34,0.00016438,2]
[363252923,1748650239705,-439.37,0.00016438,2]
[363252924,1748650239716,-430.0,0.00016438,2]
[363252925,1748650239725,-1111.19,0.00016438,2]
[363252926,1748650239735,-430.0,0.00016438,2]
[363252927,1748650239744,-430.0,0.00016438,2]
[363252928,1748650239756,-430.0,0.00016438,2]
[363252929,1748650239775,-2520.39,0.00016438,2]
[363252930,1748650239786,-849.62,0.00016438,2]
[363252931,1748650239796,-430.0,0.00016438,2]
[363252932,1748650239806,-430.0,0.00016438,2]
[363252933,1748650239822,-430.0,0.00016438,2]
[363252934,1748650239832,-430.0,0.00016438,2]
[363252935,1748650239842,-528.28,0.00016438,2]
[363252936,1748650239853,-760.4,0.00016438,2]
[363252937,1748650239862,-430.0,0.00016438,2]
[363252939,1748650239872,-430.0,0.00016438,2]
[363252940,1748650239882,-430.0,0.00016438,2]
[363252941,1748650239892,-430.0,0.00016438,2]
[363252942,1748650239906,-430.0,0.00016438,2]
[363252943,1748650239916,-250.6310397,0.00016438,2]
[363252944,1748650239925,-500.0,0.000166,2]
[363252945,1748650239936,-430.0,0.00016712,2]
[363252946,1748650239947,-443.73837268,0.00016712,2]
[363252947,1748650239956,-430.0,0.00016712,2]
[363252948,1748650239966,-521.79,0.00016712,2]
[363252949,1748650239977,-430.0,0.00016712,2]
[363252950,1748650239987,-430.0,0.00016712,2]
[363252952,1748650239999,-877.74,0.00016712,2]
[363252954,1748650240010,-430.0,0.00016712,2]
[363252956,1748650240021,-528.33,0.00016712,2]
[363252958,1748650240031,-846.74,0.00016712,2]
[363252960,1748650240041,-430.0,0.00016712,2]
[363252961,1748650240052,-430.0,0.00016712,2]
[363252962,1748650240065,-1593.58,0.00016712,2]
[363252965,1748650240074,-430.0,0.00016712,2]
[363252967,1748650240084,-1003.75,0.00016712,2]
[363252969,1748650240094,-1278.08,0.00016712,2]
[363252971,1748650240103,-1043.15,0.00016712,2]
[363252973,1748650240114,-703.3,0.00016712,2]
[363252976,1748650240125,-430.0,0.00016712,2]
[363252978,1748650240134,-1196.82,0.00016712,2]
[363252980,1748650240144,-430.0,0.00016712,2]
[363252982,1748650240153,-430.0,0.00016712,2]
[363252984,1748650240163,-448.83,0.00016712,2]
[363252988,1748650240173,-1968.93,0.00016712,2]
[363252990,1748650240183,-430.0,0.00016712,2]
[363252992,1748650240202,-430.0,0.00016712,2]
[363252994,1748650240215,-430.0,0.00016712,2]
[363252996,1748650240225,-680.17,0.00016712,2]
[363252998,1748650240235,-430.0,0.00016712,2]
[363253000,1748650240246,-430.0,0.00016712,2]
[363253002,1748650240256,-430.0,0.00016712,2]
[363253004,1748650240266,-525.06,0.00016712,2]
[363253006,1748650240276,-484.7,0.00016712,2]
[363253008,1748650240286,-430.0,0.00016712,2]
[363253010,1748650240296,-430.0,0.00016712,2]
[363253012,1748650240305,-430.0,0.00016712,2]
[363253014,1748650240319,-430.0,0.00016712,2]
[363253016,1748650240329,-1561.28,0.00016712,2]
[363253018,1748650240339,-430.0,0.00016712,2]
[363253021,1748650240349,-1929.84,0.00016712,2]
[363253023,1748650240359,-948.55,0.00016712,2]
[363253025,1748650240368,-430.0,0.00016712,2]
[363253027,1748650240378,-430.0,0.00016712,2]
[363253029,1748650240388,-430.0,0.00016712,2]
[363253031,1748650240398,-1460.09,0.00016712,2]
[363253033,1748650240408,-430.0,0.00016712,2]
[363253035,1748650240419,-721.34,0.00016712,2]
[363253037,1748650240429,-430.0,0.00016712,2]
[363253040,1748650240439,-1111.19,0.00016712,2]
[363253043,1748650240450,-430.0,0.00016712,2]
[363253046,1748650240460,-430.0,0.00016712,2]
[363253049,1748650240470,-430.0,0.00016712,2]
[363253051,1748650240479,-2520.39,0.00016712,2]
[363253052,1748650240489,-849.62,0.00016712,2]
[363253053,1748650240499,-430.0,0.00016712,2]
[363253054,1748650240509,-430.0,0.00016712,2]
[363253055,1748650240518,-528.28,0.00016712,2]
[363253056,1748650240528,-760.4,0.00016712,2]
[363253058,1748650240538,-430.0,0.00016712,2]
[363253060,1748650240547,-430.0,0.00016712,2]
[363253062,1748650240557,-430.0,0.00016712,2]
[363253064,1748650240570,-500.0,0.000168,2]
[363253066,1748650240580,-1079.4784611,0.00016886,2]
[363253069,1748650240590,-6179.79939101,0.000169,2]
[363253072,1748650240599,-2400.0,0.00016972,2]
[363253075,1748650240609,-430.0,0.00016986,2]
[363253078,1748650240618,-430.0,0.00016986,2]
[363253081,1748650240627,-430.0,0.00016986,2]
[363253085,1748650240637,-877.74,0.00016986,2]
[363253086,1748650240647,-430.0,0.00016986,2]
[363253088,1748650240656,-846.74,0.00016986,2]
[363253091,1748650240667,-430.0,0.00016986,2]
[363253092,1748650240676,-430.0,0.00016986,2]
[363253094,1748650240686,-1593.58,0.00016986,2]
[363253097,1748650240696,-430.0,0.00016986,2]
[363253099,1748650240706,-1003.75,0.00016986,2]
[363253101,1748650240715,-1278.08,0.00016986,2]
[363253103,1748650240725,-1043.15,0.00016986,2]
[363253105,1748650240734,-703.3,0.00016986,2]
[363253107,1748650240745,-1196.82,0.00016986,2]
[363253108,1748650240755,-430.0,0.00016986,2]
[363253111,1748650240765,-1968.93,0.00016986,2]
[363253113,1748650240775,-430.0,0.00016986,2]
[363253115,1748650240784,-430.0,0.00016986,2]
[363253117,1748650240794,-680.17,0.00016986,2]
[363253119,1748650240803,-155.78,0.00016986,2]
[363253123,1748650240814,-430.0,0.00016986,2]
[363253126,1748650240828,-430.0,0.00016986,2]
[363253128,1748650240837,-190.14,0.00016986,2]
[363253130,1748650240848,-525.06,0.00016986,2]
[363253132,1748650240858,-484.7,0.00016986,2]
[363253134,1748650240868,-430.0,0.00016986,2]
[363253136,1748650240878,-430.0,0.00016986,2]
[363253138,1748650240892,-430.0,0.00016986,2]
[363253140,1748650240902,-1561.28,0.00016986,2]
[363253142,1748650240912,-430.0,0.00016986,2]
[363253144,1748650240922,-1929.84,0.00016986,2]
[363253146,1748650240933,-948.55,0.00016986,2]
[363253148,1748650240942,-430.0,0.00016986,2]
[363253150,1748650240952,-1460.09,0.00016986,2]
[363253152,1748650240962,-430.0,0.00016986,2]
[363253154,1748650240973,-721.34,0.00016986,2]
[363253156,1748650240982,-1111.19,0.00016986,2]
[363253158,1748650240992,-430.0,0.00016986,2]
[363253160,1748650241001,-430.0,0.00016986,2]
[363253162,1748650241011,-2520.39,0.00016986,2]
[363253164,1748650241020,-430.0,0.00016986,2]
[363253166,1748650241030,-849.62,0.00016986,2]
[363253168,1748650241040,-430.0,0.00016986,2]
[363253171,1748650241050,-528.28,0.00016986,2]
[363253173,1748650241061,-760.4,0.00016986,2]
[363253175,1748650241070,-430.0,0.00016986,2]
[363253177,1748650241080,-430.0,0.00016986,2]
[363253179,1748650241089,-430.0,0.00016986,2]
[363253180,1748650241101,-627.47061978,0.00017136,2]
[363253183,1748650241111,-500.0,0.00017136,2]
[363253185,1748650241121,-500.0,0.00017136,2]
[363253187,1748650241130,-500.0,0.00017136,2]
[363253189,1748650241140,-500.0,0.00017136,2]
[363253191,1748650241149,-229.11349722,0.00017136,2]
[363253192,1748650241158,-500.0,0.00017136,2]
[363253195,1748650241168,-500.0,0.00017136,2]
[363253196,1748650241177,-6179.79939093,0.00017176,2]
[363253199,1748650241187,-420.0,0.00017178,2]
[363253200,1748650241196,-420.0,0.00017178,2]
[363253202,1748650241207,-160.0,0.00017218,2]
[363253204,1748650241216,-212.7380601,0.00017218,2]
[363253207,1748650241226,-160.0,0.00017218,2]
[363253208,1748650241235,-423.39538199,0.00017218,2]
[363253211,1748650241245,-160.0,0.00017218,2]
[363253213,1748650241255,-842.5625,0.00017218,2]
[363253215,1748650241265,-160.0,0.00017218,2]
[363253217,1748650241274,-160.0,0.00017218,2]
[363253219,1748650241285,-229.30959854,0.00017218,2]
[363253221,1748650241294,-12663.11115519,0.00017218,2]
[363253223,1748650241304,-500.0,0.0001722,2]
[363253225,1748650241314,-500.0,0.0001722,2]
[363253227,1748650241324,-500.0,0.0001722,2]
[363253229,1748650241334,-500.0,0.00017231,2]
[363253231,1748650241343,-500.0,0.00017231,2]
[363253233,1748650241353,-500.0,0.00017236,2]
[363253235,1748650241363,-353.94,0.0001726,2]
[363253237,1748650241372,-430.0,0.0001726,2]
[363253239,1748650241382,-877.74,0.0001726,2]
[363253241,1748650241391,-846.74,0.0001726,2]
[363253242,1748650241401,-430.0,0.0001726,2]
[363253243,1748650241409,-430.0,0.0001726,2]
[363253244,1748650241418,-1593.58,0.0001726,2]
[363253245,1748650241428,-430.0,0.0001726,2]
[363253246,1748650241438,-1003.75,0.0001726,2]
[363253247,1748650241447,-1278.08,0.0001726,2]
[363253248,1748650241456,-1043.15,0.0001726,2]
[363253249,1748650241465,-703.3,0.0001726,2]
[363253250,1748650241475,-1196.82,0.0001726,2]
[363253251,1748650241484,-430.0,0.0001726,2]
[363253252,1748650241493,-1968.93,0.0001726,2]
[363253253,1748650241503,-430.0,0.0001726,2]
[363253254,1748650241513,-430.0,0.0001726,2]
[363253255,1748650241523,-680.17,0.0001726,2]
[363253256,1748650241533,-430.0,0.0001726,2]
[363253257,1748650241543,-185.60502493,0.0001726,2]
[363253258,1748650241552,-525.06,0.0001726,2]
[363253259,1748650241563,-484.7,0.0001726,2]
[363253260,1748650241573,-430.0,0.0001726,2]
[363253261,1748650241583,-430.0,0.0001726,2]
[363253262,1748650241592,-1561.28,0.0001726,2]
[363253263,1748650241602,-430.0,0.0001726,2]
[363253264,1748650241612,-1929.84,0.0001726,2]
[363253266,1748650241622,-948.55,0.0001726,2]
[363253268,1748650241632,-430.0,0.0001726,2]
[363253270,1748650241645,-1460.09,0.0001726,2]
[363253272,1748650241655,-430.0,0.0001726,2]
[363253274,1748650241664,-721.34,0.0001726,2]
[363253276,1748650241674,-1111.19,0.0001726,2]
[363253278,1748650241684,-430.0,0.0001726,2]
[363253280,1748650241694,-430.0,0.0001726,2]
[363253282,1748650241704,-2520.39,0.0001726,2]
[363253284,1748650241716,-430.0,0.0001726,2]
[363253286,1748650241725,-849.62,0.0001726,2]
[363253288,1748650241734,-430.0,0.0001726,2]
[363253289,1748650241744,-528.28,0.0001726,2]
[363253292,1748650241753,-760.4,0.0001726,2]
[363253294,1748650241763,-275.11131857,0.0001726,2]
[363253296,1748650241772,-430.0,0.0001726,2]
[363253298,1748650241782,-500.0,0.0001729,2]
[363253300,1748650241791,-1000.0,0.00017336,2]
[363253302,1748650241801,-500.0,0.00017336,2]
[363253304,1748650241812,-1079.47846106,0.0001739,2]
[363253306,1748650241823,-6179.79939093,0.00017452,2]
[363253308,1748650241833,-430.0,0.00017534,2]
[363253310,1748650241844,-877.74,0.00017534,2]
[363253312,1748650241854,-846.74,0.00017534,2]
[363253314,1748650241864,-313.09,0.00017534,2]
[363253316,1748650241873,-430.0,0.00017534,2]
[363253318,1748650241884,-1593.58,0.00017534,2]
[363253320,1748650241895,-426.29,0.00017534,2]
[363253322,1748650241907,-1003.75,0.00017534,2]
[363253324,1748650241917,-1278.08,0.00017534,2]
[363253326,1748650241926,-1043.15,0.00017534,2]
[363253328,1748650241938,-703.3,0.00017534,2]
[363253330,1748650241947,-1196.82,0.00017534,2]
[363253332,1748650241956,-430.0,0.00017534,2]